Cogmind - Beta 17 @@@ ROGUE MODE // 2026.07.12 @ 16:15:28 Player: Cracklepappy Result: Destroyed by Lightning with EMDS Performance ------------- Evolutions (6) 3000 Regions Visited (26) 5200 Robots Destroyed (216) 1080 Value Destroyed (7880) 7880 Prototype IDs (55) 1100 Alien Tech Used (2) 400 Bonus (26686) 26686 TOTAL SCORE: 45346 Bonus ------- High Alert Combat Kills 1050 Follower Combat Kills 1309 Prayed to X0-1V1 5000 Major X0-1V1 Interference 18350 Network Hubs Disabled 400 Registered with UFD 300 Met Optimus in HQ 500 Met Imprinter 300 Destroyed Z-Imprinter 1000 Met Zhirov 300 Met R17 at Cetus 500 Friendly Fire -2323 Cogmind --------- Core Integrity 0/1055 Matter 184/900 Energy 536/1000 System Corruption 11% Temperature Cool (2) Movement Hovering (100) Ox1 Location -4/Hub_04(d) Parts ------- > --- POWER (2) -------- (None) > --- PROPULSION (6) --- Experimental Gyrokinetic Inverter > --- UTILITY (7) ------ Large Storage Unit Improved Propulsion Shielding Improved Propulsion Shielding Improved Corruption Screen X0-1V1's Piety Tracker > --- WEAPON (4) ------- Plasma Sword > --- INVENTORY (15) --- Particle Reactor Flexi-carbon Leg Myomer Leg Nuclear Pulse Array Medium Storage Unit Improved Matter Compressor (0) Advanced ECM Suite Cloak of Protection Advanced Hardlight Generator Improved System Restoration Module Neutron Missile Launcher Plasma Cutter Improved Plasma Cutter Peak State ------------ > --- POWER ------------ Light Fission Core Micro Fission Core > --- PROPULSION ------- Field Propulsion Array Field Propulsion Array Field Propulsion Array > --- UTILITY ---------- Experimental Power Amplifier Large Storage Unit Advanced Weight Redist. System Improved Launcher Guidance Computer Centrium Medium Armor Plating Centrium Medium Armor Plating X0-1V1's Piety Tracker > --- WEAPON ----------- Advanced KE Penetrator Advanced KE Penetrator Neutron Missile Launcher > --- INVENTORY -------- Medium Storage Unit Improved Matter Compressor Advanced ECM Suite Cloak of Protection Centrium Medium Armor Plating Hacking Drone Bay Transdimensional Reconstructor Railgun Advanced KE Penetrator Plasma Cutter Phasing Sabre DRS Beacon [Rating: 135] Favorites ----------- Power Micro Fission Core Engine Light Ion Engine Power Core Micro Fission Core Reactor Particle Reactor Propulsion Improved VTOL Module Treads Light Treads Hover Unit Gravmag System Flight Unit Improved VTOL Module Utility X0-1V1's Piety Tracker Device X0-1V1's Piety Tracker Storage Medium Storage Unit Processor Improved Launcher Guidance Computer Hackware Improved Hacking Suite Protection Centrium Medium Armor Plating Weapon Enhanced Autogun Energy Gun Tesla Rifle Energy Cannon Cooled Plasma Cannon Ballistic Gun Enhanced Autogun Ballistic Cannon Light Cannon Launcher Neutron Missile Launcher Special Weapon Plasma Cutter Impact Weapon Flail Slashing Weapon Power Sword Piercing Weapon Heavy Pick Special Melee Weapon Improved Datajack Build | -11 -10 -9 -8 -8 -8 -8 -6 -6 -6 -6 -6 -6 -6 -5 -5 -5 -5 -5 -5 -5 -4 -4 -4 -4 -4 -4 ------- Run | Yrd Mat Mat Mat Sto Rec Scr Fac Was Fac Low Low Zio Dee Pro Fac Was Fac Upp Upp Zhi Pro Fac Ext Cet Arc Hub Slots Evolved 12 | . . 2 2 . . . 4 . . . . . . . 2 . . . . . . 2 . . . . Power . | . . . . . . . . . . . . . . . . . . . . . . . . . . . Propulsion 4 | . . . 1 . . . 2 . . . . . . . 1 . . . . . . . . . . . Utility 5 | . . 1 . . . . 2 . . . . . . . . . . . . . . 2 . . . . Weapon 3 | . . 1 1 . . . . . . . . . . . 1 . . . . . . . . . . . Parts Attached 236 | 5 15 4 19 18 . 6 22 4 11 1 2 6 7 1 19 4 7 4 3 2 3 7 22 7 17 20 Power 27 | . 2 . 3 2 . 2 3 1 2 . . . 2 . 2 1 . . . . . 1 1 1 2 2 Engine 10 | . 2 . 3 1 . 1 . . 1 . . . . . . . . . . . . . . . 1 1 Core 14 | . . . . 1 . 1 3 1 1 . . . 1 . 2 1 . . . . . 1 1 1 . . Reactor 3 | . . . . . . . . . . . . . 1 . . . . . . . . . . . 1 1 Propulsion 54 | 2 4 1 2 2 . 1 6 1 7 . 1 . . . 4 . 4 . . . . 1 4 . 9 5 Treads 5 | 2 . . . . . . . . . . . . . . . . . . . . . . . . 3 . Leg . | . . . . . . . . . . . . . . . . . . . . . . . . . . . Wheel . | . . . . . . . . . . . . . . . . . . . . . . . . . . . Hover 13 | . . . . 1 . . . 1 . . . . . . . . . . . . . . . . 6 5 Flight 36 | . 4 1 2 1 . 1 6 . 7 . 1 . . . 4 . 4 . . . . 1 4 . . . Utility 83 | 2 4 1 5 4 . 1 10 1 . . 1 5 4 1 8 1 2 2 3 2 . 4 8 2 5 7 Device 48 | 2 3 . 4 3 . 1 3 . . . . 3 1 1 5 . 2 2 2 1 . 1 7 . 3 4 Storage 9 | . 1 . . 1 . . 1 . . . . 1 . . 1 . . . . 1 . 3 . . . . Processor 12 | . . 1 1 . . . 4 1 . . 1 . . . 2 . . . 1 . . . . . . 1 Hackware 2 | . . . . . . . . . . . . . . . . . . . . . . . 1 . 1 . Protection 12 | . . . . . . . 2 . . . . 1 3 . . 1 . . . . . . . 2 1 2 Artifact . | . . . . . . . . . . . . . . . . . . . . . . . . . . . Weapon 72 | 1 5 2 9 10 . 2 3 1 2 1 . 1 1 . 5 2 1 2 . . 3 1 9 4 1 6 Energy Gun 5 | . . . . . . . . . . . . . . . 1 . . . . . 1 1 . 1 . 1 Energy Cannon 4 | . . . . 1 . . . . . . . . . . 1 . . . . . 1 . 1 . . . Ballistic Gun 41 | 1 3 1 8 7 . 1 1 . 1 1 . . . . 2 . 1 1 . . 1 . 5 2 1 4 Ballistic Cannon 5 | . 1 1 1 . . . . . . . . . . . . 1 . . . . . . . 1 . . Launcher 1 | . . . . . . . . 1 . . . . . . . . . . . . . . . . . . Special Weapon 5 | . . . . 1 . . . . . . . 1 1 . 1 . . . . . . . . . . 1 Impact Weapon 1 | . 1 . . . . . . . . . . . . . . . . . . . . . . . . . Slashing Weapon 6 | . . . . 1 . . . . . . . . . . . 1 . 1 . . . . 3 . . . Piercing Weapon 2 | . . . . . . . 2 . . . . . . . . . . . . . . . . . . . Special Melee Weapon 2 | . . . . . . 1 . . 1 . . . . . . . . . . . . . . . . . Unidentified Prototypes 23 | . 1 . . 5 . . . 1 1 . . 3 4 . 1 . . . . 2 . . 1 2 . 2 Corrupted Parts 3 | . . . . . . . . . . . . . . . . . . . . . . . . 2 1 . System Corruption 13 | . . . . . . . . . . . . . . . . . . . . . . . . 6 7 . Parts Lost 64 | . . . 6 4 . . 3 . 2 . . . 3 4 . . 2 1 . . . 1 8 9 . 21 Power 9 | . . . 1 . . . . . 1 . . . . 1 . . . . . . . . 1 3 . 2 Propulsion 16 | . . . 3 2 . . 1 . . . . . . . . . . . . . . . 2 3 . 5 Utility 24 | . . . 2 2 . . 2 . . . . . 3 2 . . 1 1 . . . 1 3 1 . 6 Weapon 15 | . . . . . . . . . 1 . . . . 1 . . 1 . . . . . 2 2 . 8 Highest Loss Streak 12 | . . . 2 2 . . 3 . 1 . . . 2 4 . . 1 1 . . . 1 2 6 . 12 To Critical Strikes 1 | . . . . . . . . . . . . . . . . . . . . . . . . 1 . . Average Backups 9 | 2 6 6 4 5 9 9 7 8 8 9 8 9 8 7 8 9 9 9 9 9 9 11 12 12 13 13 Power . | . . . . . 1 . . . . 1 1 1 1 . . . . . . . . . . . . . Propulsion 1 | . 1 1 . . . . . 1 2 2 1 1 1 1 . 1 2 2 2 1 . 1 1 . . 2 Utility 3 | . 1 . . 1 2 2 2 3 1 2 2 2 3 2 4 4 5 5 5 4 4 4 5 6 6 6 Weapon 2 | 1 3 3 3 2 4 4 3 3 3 3 2 3 2 2 2 2 1 1 1 2 2 2 2 4 3 2 Tool/Special . | . . . . . . . . . . . . . . . . . . . . . . . . . . . Unused Backups 49 | . 7 1 2 1 . 1 5 4 2 . . . 1 . 3 3 . 1 2 1 1 4 1 . 1 8 Power 3 | . . . . . . 1 . . 1 . . . . . . . . . . . . . . . . 1 Propulsion 12 | . 3 . . . . . 1 . 1 . . . . . 1 . . . . . . 1 1 . . 4 Utility 16 | . 2 1 . . . . . 3 . . . . 1 . 1 . . . 2 1 1 1 . . . 3 Weapon 16 | . 2 . 2 1 . . 4 1 . . . . . . 1 2 . 1 . . . 1 . . 1 . Tool/Special 2 | . . . . . . . . . . . . . . . . 1 . . . . . 1 . . . . Average Slot Usage (%) 90 | . 91 93 92 90 100 96 94 99 94 96 99 100 94 75 98 88 92 87 92 87 88 88 88 65 81 78 Engine 3 | . 11 11 7 6 9 9 . . 5 6 6 6 1 . . . . . . . . . . . 1 1 Core 4 | . . . . 1 . . 5 6 3 6 6 6 5 5 10 10 10 11 11 11 11 10 9 7 . . Treads 2 | . 16 . . . . . . . . . . . . . . . . . . . . . . . 8 . Hover 2 | . . . . 7 9 4 . . . . . . . . . . . . . . . . . . 9 23 Flight 21 | . 11 22 24 8 9 13 30 32 27 26 30 33 33 33 35 28 28 29 29 29 31 29 23 10 . . Device 15 | . 16 22 17 18 18 18 16 18 7 6 6 6 6 3 13 15 16 16 15 19 18 25 21 14 14 14 Storage 5 | . 9 6 . 1 9 9 4 6 6 6 6 6 6 6 5 5 5 5 5 5 5 5 5 5 5 5 Processor 6 | . . 5 6 8 9 9 9 7 13 13 18 15 6 6 8 5 5 5 5 5 5 5 5 5 5 3 Protection 2 | . . . . . . . 4 6 6 6 . 3 11 . . . . . . 2 1 . . 7 9 3 Energy Cannon 1 | . . . . . . . . 6 . . . 2 . . 3 5 5 4 4 . 1 3 5 . . . Ballistic Gun 14 | . 18 8 33 29 27 27 15 6 11 11 13 10 11 10 6 10 10 5 5 . 2 2 9 6 16 14 Slashing Weapon 2 | . . . . 6 9 4 1 . . . . . . . 4 4 5 5 11 11 5 5 4 . 3 1 Piercing Weapon 1 | . . . . . . . 2 5 5 4 6 3 5 6 3 . . . . . . . . . . . Peak Build Rating 135 | 7 20 24 39 50 49 50 76 85 80 73 74 83 91 76 103 101 99 98 99 103 103 118 126 135 123 125 Average Rating 73 | 3 8 22 33 44 49 46 66 77 72 70 73 74 81 62 97 94 93 88 94 96 97 108 113 106 109 101 On Entrance 70 | . 7 20 24 30 49 49 44 76 80 68 72 74 76 75 68 97 92 90 98 99 103 99 108 116 74 112 Avg Prop Armor Cover (%) 12 | 34 27 . . 1 1 1 . . . . . . . . . . . . . . . . 9 . 5 . Naked Turns . | . . . . . . . . . . . . . . . . . . . . . . . . . . . Heaviest Build 87 | 3 14 14 20 31 31 31 37 45 35 30 31 34 42 34 44 57 45 46 46 47 46 51 59 67 87 72 Greatest Support 101 | 20 40 14 26 23 22 26 37 37 37 30 35 35 35 35 49 49 46 46 46 46 51 55 62 62 101 83 Greatest Overweight (x) 6 | . 2 . . 1 1 1 1 1 . . . . 1 . . 1 . . . 1 . 1 2 4 6 1 Average Overweight (x) . | . . . . . 1 . . . . . . . . . . . . . . . . . . . . . Largest Inventory Capacity 15 | 5 8 8 5 10 10 10 10 10 10 10 10 10 10 10 10 10 10 10 10 10 10 15 15 15 15 15 Average Capacity 10 | 5 7 6 5 5 10 10 8 10 10 10 10 10 10 10 10 10 10 10 10 10 10 13 15 15 15 15 Most Carried 15 | 5 8 8 5 9 9 10 10 10 10 10 10 10 10 9 10 10 10 10 10 10 10 15 15 15 15 15 Average Carried 10 | 2 6 5 4 5 9 9 8 9 9 9 9 9 9 8 9 9 9 10 9 9 9 13 14 13 13 14 Final Capacity 15 | 5 8 5 5 10 10 10 10 10 10 10 10 10 10 10 10 10 10 10 10 10 10 15 15 15 15 15 Final Carried 15 | 5 8 5 5 9 9 10 10 10 10 10 10 10 9 8 10 10 10 10 10 10 10 15 15 13 15 14 Class Distribution -------------------- 32% | Sprinter 17% | Scavenger-Sprinter 11% | Scavenger-Gunner 10% | Mutant 8% | Gunner 5% | Scavenger-Mutant 5% | Commander-Sprinter 3% | Scavenger-Tank Dominant Class ---------------- Mutant | -10/Materials Scavenger-Gunner | -9/Materials Scavenger-Gunner | -8/Materials Gunner | -8/Storage Gunner | -8/Recycling Gunner | -8/Scraptown Sprinter | -6/Factory Sprinter | -6/Waste Sprinter | -6/Factory Sprinter | -6/Lower Caves Sprinter | -6/Lower Caves Sprinter | -6/Zion Sprinter | -6/Deep Caves Sprinter | -5/Proximity Caves Sprinter | -5/Factory Scavenger-Sprinter | -5/Waste Scavenger-Sprinter | -5/Factory Scavenger-Sprinter | -5/Upper Caves Scavenger-Sprinter | -5/Upper Caves Scavenger-Sprinter | -5/Zhirov Scavenger-Sprinter | -4/Proximity Caves Infiltrator-Sprinter | -4/Factory Commander-Sprinter | -4/Extension Scavenger-Mutant | -4/Cetus Scavenger-Tank | -4/Archives Scavenger-Gunner | -4/Hub_04(d) Resources | -11 -10 -9 -8 -8 -8 -8 -6 -6 -6 -6 -6 -6 -6 -5 -5 -5 -5 -5 -5 -5 -4 -4 -4 -4 -4 -4 ----------- Run | Yrd Mat Mat Mat Sto Rec Scr Fac Was Fac Low Low Zio Dee Pro Fac Was Fac Upp Upp Zhi Pro Fac Ext Cet Arc Hub Matter Collected 12198 | 205 544 . 796 1110 . 256 914 850 227 173 53 116 483 60 1004 190 148 488 212 610 142 921 1065 65 556 1010 Remotely 138 | . . . . . . . 138 . . . . . . . . . . . . . . . . . . . Salvage Created 12582 | 119 590 40 832 1489 . . 864 1319 712 34 . . 296 90 701 769 214 271 62 360 37 244 1392 477 816 854 Parts 564 | 5 48 2 43 73 . . 44 20 28 2 . . 18 1 29 22 21 7 5 4 1 4 65 22 47 53 Haulers Intercepted 19 | . 2 1 3 6 . . 1 . 1 . . . . . 3 . . . . . . 2 . . . . Recyclers Shooed 6 | . 1 . . 1 . . 1 . . . . . . . 1 . . . . . . 1 1 . . . Parts Field Recycled . | . . . . . . . . . . . . . . . . . . . . . . . . . . . Retrieved Matter . | . . . . . . . . . . . . . . . . . . . . . . . . . . . Parts Self-Destructed 11 | . . . . . . . . . . . . 5 . . . . . 1 2 3 . . . . . . Prevented . | . . . . . . . . . . . . . . . . . . . . . . . . . . . Parts Restored . | . . . . . . . . . . . . . . . . . . . . . . . . . . . Kills | -11 -10 -9 -8 -8 -8 -8 -6 -6 -6 -6 -6 -6 -6 -5 -5 -5 -5 -5 -5 -5 -4 -4 -4 -4 -4 -4 ------- Run | Yrd Mat Mat Mat Sto Rec Scr Fac Was Fac Low Low Zio Dee Pro Fac Was Fac Upp Upp Zhi Pro Fac Ext Cet Arc Hub Combat Hostiles Destroyed 135 | . 14 . 15 19 . . 10 4 2 . . . 14 3 1 . 6 5 1 . . . 15 9 6 11 Melee 3 | . . . . . . . . . 1 . . . . . 1 . . . 1 . . . . . . . Guns 84 | . 13 . 15 19 . . 10 . 1 . . . 1 . . . 2 . . . . . 7 1 6 9 Cannons 14 | . 1 . . . . . . 4 . . . . 1 . . . 1 . . . . . 7 . . . AOE 28 | . . . . . . . . . . . . . 12 3 . . 3 5 . . . . . 3 . 2 Classes Destroyed 22 | 2 5 . 2 1 . . 1 2 1 1 . . 2 1 . . 1 . 1 . . . 1 . . 1 Worker 21 | . 1 . . 2 . . 4 . 1 . . . . . 4 . 3 . . . . 2 . . . 4 Builder 4 | . . . . . . . . . . . . . . . . . 1 . . . . . . . . 3 Tunneler 4 | 1 . . . . . . . . 1 . . . . . . . 1 . . . . . . . . 1 Hauler 19 | . 2 1 3 6 . . 1 . 1 . . . . . 3 . . . . . . 2 . . . . Recycler 10 | 1 . . . 1 . . 3 . 2 . . . . . 2 . . . . . . . 1 . . . Mechanic 1 | . . . . . . . . . 1 . . . . . . . . . . . . . . . . . Operator 13 | . . . . 1 . . 1 . . . . . . . . . . . . . . . 1 . 9 1 Drone 1 | . . . . . . . . . . . . . . . . . . . . . . . . . . 1 Watcher 7 | . 1 . 1 . . . . . 2 . . . . . . . 1 . . . . . . 2 . . Swarmer 25 | . 4 . 4 . . . 7 . . . . . . . . . 4 5 . . . . 1 . . . Grunt 42 | . 10 . 6 9 . . . . . . . . . . . . . . 1 . . . 9 . . 7 Brawler 1 | . . . . . . . . . . . . . . . . . . . . . . . 1 . . . Sentry 24 | . . . 4 9 . . 2 . . . . . . . . . . . . . . . 3 1 4 1 Specialist 3 | . . . . . . . . . . . . . . 3 . . . . . . . . . . . . Hunter 6 | . . . 1 1 . . . . 1 . . . . . 1 . . . . . . . . . . 2 Programmer 6 | . . . . . . . 1 . 1 . . . . . . . 2 . . . . . . . 2 . Compactor 4 | . . . . . . . . 4 . . . . . . . . . . . . . . . . . . Cetus Guard 8 | . . . . . . . . . . . . . . . . . . . . . . . . 8 . . Z-Light 8 | . . . . . . . . . . . . . 8 . . . . . . . . . . . . . Decomposer 3 | . . . . . . . . . . . . . . . . . . 1 . . 2 . . . . . Samaritan 3 | . . . . . . . . . . 1 . . . . . . . 2 . . . . . . . . Tinkerer 1 | . . . . . . . . . . . . . . . . . . . 1 . . . . . . . Assembled 5 | . . . . . . . . . . . . . 5 . . . . . . . . . . . . . Thug 1 | . . . . . . . . . . . . . . . . . . . . . . . 1 . . . Martyr 8 | . . . . . . . . 2 . . . . . . . 4 . . . . . . 2 . . . Best Kill Streak 10 | 2 3 1 8 10 . . 5 2 3 . . . 6 3 4 . 7 5 1 . . 2 7 6 3 6 Combat Bots Only 8 | . 2 . 8 4 . . 4 2 1 . . . 6 3 1 . 4 5 1 . . . 7 5 2 4 Max Kills in Single Turn 6 | 1 1 1 2 2 . . 2 1 1 1 . . 4 2 1 1 6 3 1 . 1 1 1 1 1 3 Gunslinging 1 | . . . 1 . . . 1 . . . . . . . . . . . . . . . . . . . Exploded 4 | . . . . . . . . . . . . . 4 2 . . 3 3 . . . . . 1 . 2 Melee 1 | . . . . . . . . . 1 . . . . . 1 . . . 1 . . . . . . . Uniques/NPCs Destroyed 1 | . . . . . . . . . . . . . 1 . . . . . . . . . . . . . Z-Imprinter (-6/Deep Caves) Combat | -11 -10 -9 -8 -8 -8 -8 -6 -6 -6 -6 -6 -6 -6 -5 -5 -5 -5 -5 -5 -5 -4 -4 -4 -4 -4 -4 -------- Run | Yrd Mat Mat Mat Sto Rec Scr Fac Was Fac Low Low Zio Dee Pro Fac Was Fac Upp Upp Zhi Pro Fac Ext Cet Arc Hub Hostile Shots Fired 1214 | . 54 5 102 73 . . 60 . 112 12 4 . 17 25 9 . 70 11 5 . 34 80 127 90 31 293 Missed 530 | . 19 3 46 29 . . 29 . 69 11 3 . 6 4 6 . 39 6 4 . 21 46 50 37 8 94 Hits 684 | . 35 2 56 44 . . 31 . 43 1 1 . 11 21 3 . 31 5 1 . 13 34 77 53 23 199 Melee 22 | . . . . . . . . . 1 . . . 1 . 1 . . . . . . . . . . 19 Projectile 662 | . 35 2 56 44 . . 31 . 42 1 1 . 10 21 2 . 31 5 1 . 13 34 77 53 23 180 AOE 7 | . . . . . . . . . . . . . . 7 . . . . . . . . . . . . Critical Strikes 31 | . . . 2 2 . . . . . . . . . . . . 1 . . . . 1 5 9 2 9 Part Disruptions 4 | . . . . . . . 1 . . . . . . 2 . . . . . . . . . . . 1 Actively Blocked 1 | . . . . . . . . . . . . . . . . . . . . . . . . . . 1 Damage Taken 12636 | . 391 25 868 672 . . 362 5 644 11 14 . 544 547 59 . 533 73 18 . 251 586 1283 1421 569 3760 Core 2299 | . 70 . 147 110 . . 68 . 66 . 14 . 115 122 . . 53 12 . . 18 112 229 80 30 1053 Absorbed by Shields 360 | . . . . . . . . . . . . . . . . . . . . . . 13 347 . . . Redirected to Shielding 194 | . . . . . . . . . . . . . 109 8 . . . . . . . . . . . 77 Ignored by Resistances 104 | . . . 17 27 . . . . . . . . . . . . . . . . . 15 . . . 45 Regen/Repaired (Parts) 446 | . . . . . . . . 105 12 . . . . . . 203 . . . . . 126 . . . . Core Remaining (%) 80 | 100 72 100 . . . 70 . . . . . . . 49 . . . . . . 90 . . . . . Volleys Fired 565 | 6 78 2 36 72 . . 29 66 8 . 1 . 27 5 8 23 17 5 3 . . 5 49 55 17 53 Largest 5 | 1 2 3 4 5 . . 4 1 3 . 1 . 1 1 1 1 3 2 1 . . 1 3 2 4 4 Hottest 225 | 20 50 83 113 116 . . 86 35 70 . 35 . 105 105 69 35 96 68 35 . . 35 155 153 140 225 Shots Fired 1215 | 6 141 4 141 257 1 . 65 66 18 . 1 . 27 5 8 23 34 6 4 . 1 5 112 60 66 164 Gun 978 | 6 139 1 138 257 1 . 54 . 14 . . . 3 1 . 3 17 1 1 . 1 . 66 48 66 161 Cannon 201 | . 2 3 3 . . . 11 66 4 . 1 . 10 1 7 20 16 1 3 . . 5 46 2 . . Launcher 30 | . . . . . . . . . . . . . 9 3 . . 1 4 . . . . . 10 . 3 Special 6 | . . . . . . . . . . . . . 5 . 1 . . . . . . . . . . . Kinetic 942 | 6 141 4 141 257 1 . 54 . 14 . . . 3 1 . 3 17 1 1 . 1 . 66 8 66 157 Thermal 178 | . . . . . . . 11 66 4 . 1 . 10 1 6 20 16 1 3 . . 5 30 . . 4 Explosive 35 | . . . . . . . . . . . . . 14 3 . . 1 4 . . . . . 10 . 3 Electromagnetic 59 | . . . . . . . . . . . . . . . 1 . . . . . . . 16 42 . . Robot Hit Streak 18 | 6 10 4 6 17 1 . 18 13 6 . . . 15 6 7 15 4 4 . . 5 . 11 8 7 8 Robot Miss Streak 8 | . 3 . 3 6 . . 8 1 1 . . . 2 . . 1 6 . . . . . 2 3 1 7 Penetration Max 2 | . . . . . . . . . . . . . . . . . . . . . . . 1 . 1 2 Secondary Targets 12 | . . . 1 4 . . 2 . . . . . . . . . . . . . . . . . 1 4 Max Gunslinging Chain 1 | . . . 1 1 . . 1 . . . . . . . . . . . . . . . . . 1 1 Shots Hit Robots 845 | 6 89 2 76 156 1 1 47 60 27 1 . 4 17 6 19 30 21 7 3 5 3 12 84 42 50 76 Core Hits 405 | 3 36 1 36 56 . . 35 10 12 . . . 23 6 9 6 13 12 1 3 . 2 46 30 22 43 Critical Kills 9 | . . . . . . . . . . . . . . . . 1 1 . . . . . 2 . 2 3 Critical Parts Destroyed 7 | . . . . . . . 1 . . . . . . . . . 2 . . . . . . 1 1 2 Critical Strikes 32 | . . . . . . . 2 . 3 1 . . 1 . 2 3 3 . . . . 3 3 1 3 7 Meltdown 1 | . . . . . . . . . . . . . . . . 1 . . . . . . . . . . Destroy 19 | . . . . . . . 1 . . . . . . . . 2 3 . . . . . 2 1 3 7 Sever 6 | . . . . . . . . . . . . . 1 . 1 . . . . . . 3 1 . . . Impale 6 | . . . . . . . 1 . 3 1 . . . . 1 . . . . . . . . . . . Melee Attacks 218 | . 9 2 . 3 . 1 27 4 28 1 10 5 3 2 30 10 13 6 5 5 2 21 10 . 14 7 Impact 11 | . 9 2 . . . . . . . . . . . . . . . . . . . . . . . . Slashing 121 | . . . . 3 . . 9 . . . . . . . 16 10 13 6 5 5 2 21 10 . 14 7 Piercing 80 | . . . . . . . 17 4 28 1 10 1 3 2 14 . . . . . . . . . . . Sneak Attacks 73 | . . . . . . 1 8 4 6 1 . 4 . 1 9 10 4 3 1 . 2 5 2 . 9 3 Combat Hostiles . | . . . . . . . . . . . . . . . . . . . . . . . . . . . Follow-up Attacks 3 | . . . . . . . . . . . . . . . 1 . . . 1 1 . . . . . . Damage Inflicted 30151 | 50 976 37 1285 2572 15 . 1297 2196 1198 67 . . 2431 763 1181 1414 1278 1105 201 531 243 989 2879 2203 2519 2721 Guns 11297 | 50 946 . 1196 2572 15 . 713 . 189 . . . 24 25 . 18 100 7 . . 6 . 1459 738 1215 2024 Cannons 4513 | . 30 37 89 . . . . 1956 . . . . 332 62 . 603 182 33 . . . . 1127 62 . . Explosions 5489 | . . . . . . . . . . . . . 1883 601 . . 536 671 . . . . . 1403 . 395 Melee 8609 | . . . . . . . 584 240 1009 67 . . . 75 1181 793 460 394 201 531 237 989 293 . 1304 251 Ramming 51 | . . . . . . . . . . . . . . . . . . . . . . . . . . 51 Kinetic 10909 | 50 976 37 1285 2572 15 . 713 47 189 . . . 24 25 . 18 100 7 . . 6 . 1459 147 1215 2024 Thermal 4325 | . . . . . . . . 1909 . . . . 462 62 . 603 182 33 . . . . 670 404 . . Explosive 4955 | . . . . . . . . . . . . . 1753 601 . . 536 671 . . . . . 999 . 395 Electromagnetic 1110 | . . . . . . . . . . . . . . . . . . . . . . . 457 653 . . Impact . | . . . . . . . . . . . . . . . . . . . . . . . . . . . Slashing 6454 | . . . . . . . 73 . . . . . 192 . 736 793 460 394 201 531 237 989 293 . 1304 251 Piercing 2347 | . . . . . . . 511 240 1009 67 . . . 75 445 . . . . . . . . . . . Highest Corruption 19 | . . . 15 17 17 . . . 11 11 11 11 . 3 . . 9 9 6 6 6 1 19 9 19 11 Average Corruption 10 | . . . 14 15 17 . . . 11 11 11 11 . 2 . . 8 7 6 6 6 1 13 6 14 4 Corruption Purged 19 | . . . . . . . . . . . . . . . . . . 3 . . . . . . 14 2 Corruption Blocked 12 | . . . . . . . . . . . . . . . . . . . . . . . . . . 12 Effects 170 | . . . 19 41 2 . . . 2 3 7 . . . . . 4 13 5 3 3 1 24 8 24 11 Message Errors 36 | . . . 3 8 . . . . . 1 2 . . . . . 1 4 1 . . . 9 2 4 1 Matter Fused 32 | . . . 5 5 1 . . . 2 2 . . . . . . 2 2 . 1 1 1 3 1 4 2 Heat Flow Errors 13 | . . . 1 1 . . . . . . 2 . . . . . . 1 1 1 . . . . 5 1 Energy Discharges 21 | . . . 1 3 . . . . . . 1 . . . . . . 4 1 1 . . 4 3 1 2 Parts Rejected 5 | . . . 2 1 . . . . . . . . . . . . 1 . . . . . . . . 1 Parts Fused 3 | . . . . . . . . . . . . . . . . . . 1 . . . . 2 . . . Data Loss (minor) 18 | . . . 1 4 . . . . . . 2 . . . . . . 1 2 . 1 . 2 . 5 . Data Loss (major) 4 | . . . 1 1 . . . . . . . . . . . . . . . . . . 1 . 1 . Misfires 5 | . . . . 1 1 . . . . . . . . . . . . . . . 1 . 1 . . 1 Alerts 6 | . . . . 2 . . . . . . . . . . . . . . . . . . . 1 2 1 Misdirections 5 | . . . 3 1 . . . . . . . . . . . . . . . . . . 1 . . . Weapon Failures 22 | . . . 2 14 . . . . . . . . . . . . . . . . . . 1 1 2 2 Overload Shots 9 | . . . . . . . . . . . . . 5 1 . . . . . . . . . . . 3 Effects 1 | . . . . . . . . . . . . . 1 . . . . . . . . . . . . . Heat Surge 1 | . . . . . . . . . . . . . 1 . . . . . . . . . . . . . Overflow Damage 2389 | . . . 39 . . . 81 2 177 130 . . 92 18 122 97 159 179 57 141 200 231 26 77 417 144 Projectiles 41 | . . . 39 . . . . 2 . . . . . . . . . . . . . . . . . . Explosions 320 | . . . . . . . . . . . . . 92 18 . . 13 74 . . . . . 77 . 46 Melee 2028 | . . . . . . . 81 . 177 130 . . . . 122 97 146 105 57 141 200 231 26 . 417 98 Knockbacks 1 | . 1 . . . . . . . . . . . . . . . . . . . . . . . . . Impact . | . . . . . . . . . . . . . . . . . . . . . . . . . . . Kinetic 1 | . 1 . . . . . . . . . . . . . . . . . . . . . . . . . Secondary . | . . . . . . . . . . . . . . . . . . . . . . . . . . . Self-Inflicted Damage 25 | . . . . . . . . . . . . . . . . . . . . . . . . . . 25 Shots . | . . . . . . . . . . . . . . . . . . . . . . . . . . . Rammed 4 | . . . . . . . . . . . . . . . . . . . . . . . . . . 4 Targets Rammed 4 | . . . . . . . . . . . . . . . . . . . . . . . . . . 4 Kicked . | . . . . . . . . . . . . . . . . . . . . . . . . . . . Crushed . | . . . . . . . . . . . . . . . . . . . . . . . . . . . Highest Temperature 366 | . 9 18 366 171 . . . 235 257 . 192 . 174 . . 13 . 76 218 86 . 275 . 323 247 191 Average Temperature 64 | . 5 9 77 27 . . . 132 132 . 81 . 113 . . 5 . 48 128 86 . 149 . 94 117 78 Received Heat Transfer 1875 | . 174 15 306 351 . . 51 . 72 6 . . 72 9 9 . 90 9 . . 45 72 216 18 63 297 Effects 2 | . . . 1 . . . . . 1 . . . . . . . . . . . . . . . . . Shutdowns 1 | . . . 1 . . . . . . . . . . . . . . . . . . . . . . . Energy Bleed 1 | . . . . . . . . . 1 . . . . . . . . . . . . . . . . . Siege Activations . | . . . . . . . . . . . . . . . . . . . . . . . . . . . Martial Activations . | . . . . . . . . . . . . . . . . . . . . . . . . . . . Shielding Activations . | . . . . . . . . . . . . . . . . . . . . . . . . . . . Robots Disrupted . | . . . . . . . . . . . . . . . . . . . . . . . . . . . Combat Hostiles . | . . . . . . . . . . . . . . . . . . . . . . . . . . . Robots Corrupted 6 | . . . . . . . . . . . . . . . . . . . . . . . 1 5 . . Combat Hostiles 6 | . . . . . . . . . . . . . . . . . . . . . . . 1 5 . . Parts Fried 5 | . . . . . . . . . . . . . . . . . . . . . . . 1 4 . . Impact Corruptions . | . . . . . . . . . . . . . . . . . . . . . . . . . . . Robots Melted 1 | . . . . . . . . . . . . . . . . 1 . . . . . . . . . . Combat Hostiles 1 | . . . . . . . . . . . . . . . . 1 . . . . . . . . . . Parts Melted 1 | . . . . . . . . . . . . . . . . . . . . . . . 1 . . . Heat Transferred 6000 | . . . . . . . . 2986 . . . . 620 80 . 950 250 50 . . . . 814 250 . . Parts Sabotaged . | . . . . . . . . . . . . . . . . . . . . . . . . . . . Parts Stolen . | . . . . . . . . . . . . . . . . . . . . . . . . . . . Parts Stripped . | . . . . . . . . . . . . . . . . . . . . . . . . . . . Power Chain Reactions 4 | . . . . . . . . . . . . . 1 . . . 1 . . . . 1 . 1 . . Alert | -11 -10 -9 -8 -8 -8 -8 -6 -6 -6 -6 -6 -6 -6 -5 -5 -5 -5 -5 -5 -5 -4 -4 -4 -4 -4 -4 ------- Run | Yrd Mat Mat Mat Sto Rec Scr Fac Was Fac Low Low Zio Dee Pro Fac Was Fac Upp Upp Zhi Pro Fac Ext Cet Arc Hub Maximum Alert Level 4 | . . 1 2 2 1 . 1 . 3 . . . . . . . 3 . . . . 2 4 3 2 2 Low Security (%) 43 | 100 100 98 62 3 . . 48 100 21 . . . . . 100 100 36 . . . . . . . . 18 Level 1 24 | . . 1 26 31 100 . 51 . 10 . . . . . . . 25 . . . . 34 19 . 92 44 Level 2 25 | . . . 10 65 . . . . 62 . . . . . . . 18 . . . . 65 55 25 7 36 Level 3 6 | . . . . . . . . . 5 . . . . . . . 19 . . . . . 22 74 . . Level 4 . | . . . . . . . . . . . . . . . . . . . . . . . 1 . . . Level 5 . | . . . . . . . . . . . . . . . . . . . . . . . . . . . High Security . | . . . . . . . . . . . . . . . . . . . . . . . . . . . Max Security . | . . . . . . . . . . . . . . . . . . . . . . . . . . . Sterilizations 1 | . . . . . . . . . . . . . . . . . . . . . . . . 1 . . Peak Influence 1126 | 5 111 207 473 630 238 . 331 110 780 . . . . . 152 50 831 . . . . 488 1126 800 419 476 Initial 613 | . 3 24 87 199 238 . . 110 14 . . . . . . 50 1 . . . . 334 221 613 296 100 Average 281 | 1 50 58 212 441 233 . 174 39 421 . . . . . 34 20 358 . . . . 404 550 711 347 333 Influence Increases 9862 | 10 503 223 668 732 . . 632 45 1340 15 . . . 60 339 84 1229 115 20 10 105 742 1723 357 253 657 Destroy 0b10 Robot/C 3220 | . 280 . 300 380 . . 200 20 200 . . . . 60 60 40 300 100 20 . . . 740 180 120 220 Destroy 0b10 Robot/NC 420 | 10 20 5 20 50 . . 45 . 45 . . . . . 45 . 30 5 . 10 . 20 15 10 45 45 Destroy Leader 592 | . 76 2 88 132 . . 52 . 58 . . . . . 6 . 52 10 . . . 4 72 . 10 30 Allied During Kill 724 | . . . . . . . . 20 147 . . . . . 22 40 . . . . . . 495 . . . Successful Hack 172 | . 14 38 4 28 . . 38 . 44 . . . . . 6 . . . . . . . . . . . Select Force Hacks 460 | . 60 . . . . . 50 . 50 . . . . . 50 . 100 . . . . 150 . . . . Disable Machine 390 | . . 15 . 45 . . 15 . . . . . . . 15 . 15 . . . . . 45 30 60 150 Anti-Garrison Action 200 | . . . . . . . . . 200 . . . . . . . . . . . . . . . . . Destroy Structure 537 | . 8 . 1 7 . . 22 5 8 . . . . . 60 4 72 . . . . 22 36 62 18 212 Advance Influence 300 | . . . . . . . . . . . . . . . . . . . . . . 300 . . . . Partial Spotted 315 | . 15 . 45 45 . . 105 . 15 . . . . . . . 75 . . . . 15 . . . . Lose Combat Pursuer 1530 | . 30 15 210 45 . . 105 . 165 15 . . . . 75 . 585 . . . 105 15 90 75 . . Miscellaneous 1002 | . . 148 . . . . . . 408 . . . . . . . . . . . . 216 230 . . . Influence Decreases 9649 | 5 451 73 402 592 385 228 316 341 588 326 189 272 . 60 195 226 410 505 153 308 50 345 1079 713 706 731 Entered New Map 4038 | . 2 33 120 274 375 228 . 206 6 286 89 272 . . . 94 1 305 83 298 . 21 231 483 444 187 Time Decay 3971 | 5 449 40 222 278 10 . 276 135 262 40 100 . . 40 175 112 159 190 70 10 50 214 398 140 262 334 Search Patrol Dispatched 100 | . . . . . . . . . . . . . . . . . . . . . . 100 . . . . Lost Part 590 | . . . 60 40 . . 30 . 20 . . . . 20 . . 20 10 . . . 10 80 90 . 210 Lost Ally 950 | . . . . . . . 10 . 300 . . . . . 20 20 230 . . . . . 370 . . . Squads Dispatched 90 | . 4 1 2 4 . . 10 . 12 . . . . . 12 . 14 . 1 . 1 14 3 . 2 10 Investigation 51 | . 3 . 1 . . . 6 . 9 . . . . . 9 . 11 . . . 1 9 1 . 1 . Extermination 12 | . . . . . . . 2 . 1 . . . . . 1 . 2 . . . . 3 . . 1 2 Reinforcement 18 | . 1 1 1 1 . . 2 . 2 . . . . . 1 . 1 . . . . 2 1 . . 5 Assault 2 | . . . . . . . . . . . . . . . . . . . 1 . . . 1 . . . Garrison 7 | . . . . 3 . . . . . . . . . . 1 . . . . . . . . . . 3 Intercept . | . . . . . . . . . . . . . . . . . . . . . . . . . . . Searches Triggered 1 | . . . . . . . . . . . . . . . . . . . . . . 1 . . . . Construction Impeded . | . . . . . . . . . . . . . . . . . . . . . . . . . . . Haulers Reinforced 4 | . . . . . . . . . 1 . . . . . . . 1 . . . . 2 . . . . Active Scanning Responses . | . . . . . . . . . . . . . . . . . . . . . . . . . . . Cargo Convoy Interrupts . | . . . . . . . . . . . . . . . . . . . . . . . . . . . Stealth | -11 -10 -9 -8 -8 -8 -8 -6 -6 -6 -6 -6 -6 -6 -5 -5 -5 -5 -5 -5 -5 -4 -4 -4 -4 -4 -4 --------- Run | Yrd Mat Mat Mat Sto Rec Scr Fac Was Fac Low Low Zio Dee Pro Fac Was Fac Upp Upp Zhi Pro Fac Ext Cet Arc Hub Distress Signals 23 | . 2 2 5 . . . 1 . 1 . . . . 3 . . 1 . . . . 1 2 3 . 2 Communications Jammed . | . . . . . . . . . . . . . . . . . . . . . . . . . . . Distress Signals . | . . . . . . . . . . . . . . . . . . . . . . . . . . . Times Spotted 480 | . 30 7 37 29 . . 25 14 29 2 4 . 11 6 15 3 60 11 13 . 12 47 52 10 18 45 Peak Tracking Total 17 | . 5 5 10 5 . . 5 4 11 2 5 . 5 3 4 1 16 5 9 . 7 12 9 5 2 17 Tactical Retreats 51 | . 2 1 5 2 . . 3 1 5 1 . . . . 2 . 9 1 1 . 4 6 5 3 . . ECM-based Alert Blocks 38 | . . . . . . . . . . . . . . . . . 1 5 4 . 3 25 . . . . Traps | -11 -10 -9 -8 -8 -8 -8 -6 -6 -6 -6 -6 -6 -6 -5 -5 -5 -5 -5 -5 -5 -4 -4 -4 -4 -4 -4 ------- Run | Yrd Mat Mat Mat Sto Rec Scr Fac Was Fac Low Low Zio Dee Pro Fac Was Fac Upp Upp Zhi Pro Fac Ext Cet Arc Hub Traps Triggered 18 | . 1 . 2 2 . . 1 . 2 . . . . 1 2 . . . . . . 1 4 . . 2 Indirectly . | . . . . . . . . . . . . . . . . . . . . . . . . . . . Trap Hack Attempts . | . . . . . . . . . . . . . . . . . . . . . . . . . . . Triggered . | . . . . . . . . . . . . . . . . . . . . . . . . . . . Disarmed . | . . . . . . . . . . . . . . . . . . . . . . . . . . . Reprogrammed . | . . . . . . . . . . . . . . . . . . . . . . . . . . . Reused . | . . . . . . . . . . . . . . . . . . . . . . . . . . . Traps Extracted . | . . . . . . . . . . . . . . . . . . . . . . . . . . . Installed . | . . . . . . . . . . . . . . . . . . . . . . . . . . . Triggered . | . . . . . . . . . . . . . . . . . . . . . . . . . . . Most Traps Carried 1 | . . . . . . 1 1 . . . . . . . . . . . . . . . . . . . Machines | -11 -10 -9 -8 -8 -8 -8 -6 -6 -6 -6 -6 -6 -6 -5 -5 -5 -5 -5 -5 -5 -4 -4 -4 -4 -4 -4 ---------- Run | Yrd Mat Mat Mat Sto Rec Scr Fac Was Fac Low Low Zio Dee Pro Fac Was Fac Upp Upp Zhi Pro Fac Ext Cet Arc Hub Machines Disabled 33 | . . 1 . 3 . . 1 . . . . 3 4 . 1 . 1 . . . . . 3 2 4 10 Max in Single Turn 2 | . . 1 . 1 . . 1 . . . . 1 1 . 1 . . . . . . . 1 1 1 2 Garrison Access 5 | . . . . 1 . . 1 . 1 . . . . . . . 1 . . . . . . . . 1 Network Hub 2 | . . . . . . . . . . . . . . . . . . . . . . . . . . 2 Machines Repaired . | . . . . . . . . . . . . . . . . . . . . . . . . . . . Machines Dismantled 8 | . . . . 1 . . . . . . . 3 1 . . . . . . . . . . 1 . 2 Machines Sabotaged . | . . . . . . . . . . . . . . . . . . . . . . . . . . . Overloaded Fab Kills 3 | . . . . . . . 1 . . . . . . . . . 1 . . . . 1 . . . . Hacking | -11 -10 -9 -8 -8 -8 -8 -6 -6 -6 -6 -6 -6 -6 -5 -5 -5 -5 -5 -5 -5 -4 -4 -4 -4 -4 -4 --------- Run | Yrd Mat Mat Mat Sto Rec Scr Fac Was Fac Low Low Zio Dee Pro Fac Was Fac Upp Upp Zhi Pro Fac Ext Cet Arc Hub Machines Accessed 114 | . 7 6 4 9 . 5 14 . 16 1 1 1 . . 12 . 12 1 1 4 1 12 3 1 . 3 Terminals 39 | . 5 5 4 6 . . 6 . 4 . . . . . . . 1 . . . 1 2 2 1 . 2 Fabricators 8 | . . . . . . . 1 . 1 . . . . . 1 . 2 . . . . 3 . . . . Repair Stations 5 | . . . . . . . . . 2 . . . . . 1 . . . . . . 2 . . . . Recycling Units 35 | . 2 . . 2 . . 5 . 6 . . . . . 7 . 8 . . . . 4 1 . . . Scanalyzers 6 | . . 1 . . . . 1 . 1 . . . . . 2 . . . . . . 1 . . . . Garrison Access 7 | . . . . 1 . . 1 . 2 . . . . . 1 . 1 . . . . . . . . 1 Total Hacks 237 | . 16 16 13 17 . 26 26 . 30 1 1 5 . . 17 . 17 1 1 17 5 19 3 3 . 3 Successful 139 | . 10 7 4 6 . 26 10 . 12 1 1 5 . . 11 . 11 1 1 17 5 9 1 . . 1 Failed 96 | . 6 9 9 11 . . 15 . 18 . . . . . 6 . 6 . . . . 9 2 3 . 2 Catastrophic 22 | . 1 2 2 1 . . 3 . 8 . . . . . 1 . 1 . . . . 1 1 . . 1 Database Lockouts 2 | . . . . . . . 1 . . . . . . . . . . . . . . 1 . . . . Manual 121 | . 14 11 11 2 . . 18 . 20 . . 1 . . 12 . 15 . . . . 15 2 . . . Terminals 90 | . 13 14 13 12 . . 11 . 11 . . . . . . . 2 . . . 5 2 2 3 . 2 Fabricators 12 | . . . . . . . 2 . 1 . . . . . 2 . 3 . . . . 4 . . . . Repair Stations 8 | . . . . . . . . . 3 . . . . . 1 . . . . . . 4 . . . . Recycling Units 53 | . 3 . . 4 . . 8 . 10 . . . . . 10 . 10 . . . . 7 1 . . . Scanalyzers 13 | . . 2 . . . . 4 . 2 . . . . . 3 . . . . . . 2 . . . . Garrison Access 9 | . . . . 1 . . 1 . 3 . . . . . 1 . 2 . . . . . . . . 1 Terminal Hacks 69 | . 2 3 1 4 . 26 . . 2 1 1 5 . . . . . 1 1 17 5 . . . . . Record 32 | . . . . . . 21 . . . . . . . . . . . 1 . 5 5 . . . . . Part Schematic 11 | . . 1 . 1 . . . . . . . 5 . . . . . . . 4 . . . . . . Robot Analysis 8 | . . . . . . 4 . . . . . . . . . . . . . 4 . . . . . . Prototype ID Bank 5 | . . 1 . . . . . . . . . . . . . . . . . 4 . . . . . . Open Door 6 | . . . . 3 . . . . . 1 1 . . . . . . . 1 . . . . . . . Branch Access Points 3 | . . 1 1 . . . . . 1 . . . . . . . . . . . . . . . . . Locate Traps 2 | . 1 . . . . . . . 1 . . . . . . . . . . . . . . . . . Hauler Manifests 1 | . 1 . . . . . . . . . . . . . . . . . . . . . . . . . Proto ID Catalog 1 | . . . . . . 1 . . . . . . . . . . . . . . . . . . . . Fabricator Hacks . | . . . . . . . . . . . . . . . . . . . . . . . . . . . Repair Station Hacks 3 | . . . . . . . . . 2 . . . . . 1 . . . . . . . . . . . Refit 3 | . . . . . . . . . 2 . . . . . 1 . . . . . . . . . . . Recycling Unit Hacks 2 | . 1 . . 1 . . . . . . . . . . . . . . . . . . . . . . Retrieve Components 2 | . 1 . . 1 . . . . . . . . . . . . . . . . . . . . . . Scanalyzer 4 | . . . . . . . 1 . . . . . . . 2 . . . . . . 1 . . . . Retrieve Study 4 | . . . . . . . 1 . . . . . . . 2 . . . . . . 1 . . . . Garrison Access Hacks 4 | . . . . 1 . . 1 . . . . . . . . . 1 . . . . . . . . 1 Seal Access 4 | . . . . 1 . . 1 . . . . . . . . . 1 . . . . . . . . 1 Unauthorized Hacks 57 | . 7 4 3 . . . 8 . 8 . . . . . 8 . 10 . . . . 8 1 . . . Terminals 14 | . 5 4 3 . . . 2 . . . . . . . . . . . . . . . . . . . Assimilate 1 | . . . . . . . 1 . . . . . . . . . . . . . . . . . . . Botnet 1 | . . . . . . . 1 . . . . . . . . . . . . . . . . . . . Skim 12 | . 5 4 3 . . . . . . . . . . . . . . . . . . . . . . . Fabricators 9 | . . . . . . . 2 . 1 . . . . . 1 . 2 . . . . 3 . . . . Haulers 1 | . . . . . . . 1 . . . . . . . . . . . . . . . . . . . Overload 8 | . . . . . . . 1 . 1 . . . . . 1 . 2 . . . . 3 . . . . Repair Stations 2 | . . . . . . . . . . . . . . . . . . . . . . 2 . . . . Patch 2 | . . . . . . . . . . . . . . . . . . . . . . 2 . . . . Recycling Units 31 | . 2 . . . . . 4 . 6 . . . . . 7 . 8 . . . . 3 1 . . . Tunnel 2 | . 2 . . . . . . . . . . . . . . . . . . . . . . . . . Fedlink 29 | . . . . . . . 4 . 6 . . . . . 7 . 8 . . . . 3 1 . . . Scanalyzers . | . . . . . . . . . . . . . . . . . . . . . . . . . . . Garrison Access 1 | . . . . . . . . . 1 . . . . . . . . . . . . . . . . . Jam 1 | . . . . . . . . . 1 . . . . . . . . . . . . . . . . . Data Cores Recovered 2 | . . . . . . . 1 . . . . . . . . . . . . . . . . . . 1 Used . | . . . . . . . . . . . . . . . . . . . . . . . . . . . Hacking Detections 59 | . 5 6 4 7 . . 10 . 10 . . . . . 5 . 2 . . . 1 5 2 1 . 1 Full Trace Events 4 | . . . . . . . 1 . 1 . . . . . . . . . . . 1 1 . . . . Feedback Events . | . . . . . . . . . . . . . . . . . . . . . . . . . . . Feedback Blocked . | . . . . . . . . . . . . . . . . . . . . . . . . . . . Robot Schematics Acquired 3 | . . . . . . . . . . . . 3 . . . . . . . . . . . . . . Robots Built . | . . . . . . . . . . . . . . . . . . . . . . . . . . . Authchips . | . . . . . . . . . . . . . . . . . . . . . . . . . . . Time . | . . . . . . . . . . . . . . . . . . . . . . . . . . . Total Robot Build Rating . | . . . . . . . . . . . . . . . . . . . . . . . . . . . Part Schematics Acquired 25 | . . 1 . 1 . . . . . . . 19 . . . . . . . 4 . . . . . . Parts Built . | . . . . . . . . . . . . . . . . . . . . . . . . . . . Authchips . | . . . . . . . . . . . . . . . . . . . . . . . . . . . Time . | . . . . . . . . . . . . . . . . . . . . . . . . . . . Total Part Build Rating . | . . . . . . . . . . . . . . . . . . . . . . . . . . . Part Studies Acquired 4 | . . . . . . . 1 . . . . . . . 2 . . . . . . 1 . . . . Parts Repaired . | . . . . . . . . . . . . . . . . . . . . . . . . . . . Time . | . . . . . . . . . . . . . . . . . . . . . . . . . . . Parts Recycled . | . . . . . . . . . . . . . . . . . . . . . . . . . . . Recycled Matter . | . . . . . . . . . . . . . . . . . . . . . . . . . . . Retrieved Matter . | . . . . . . . . . . . . . . . . . . . . . . . . . . . Retrieved Components 1 | . . . . 1 . . . . . . . . . . . . . . . . . . . . . . Parts Scanalyzed . | . . . . . . . . . . . . . . . . . . . . . . . . . . . Part Schematics Acquired . | . . . . . . . . . . . . . . . . . . . . . . . . . . . Parts Damaged . | . . . . . . . . . . . . . . . . . . . . . . . . . . . Bothacking | -11 -10 -9 -8 -8 -8 -8 -6 -6 -6 -6 -6 -6 -6 -5 -5 -5 -5 -5 -5 -5 -4 -4 -4 -4 -4 -4 ------------ Run | Yrd Mat Mat Mat Sto Rec Scr Fac Was Fac Low Low Zio Dee Pro Fac Was Fac Upp Upp Zhi Pro Fac Ext Cet Arc Hub Used RIF Installer . | . . . . . . . . . . . . . . . . . . . . . . . . . . . Robots Hacked 6 | . . . . . . 1 1 . . . . 3 . . 1 . . . . . . . . . . . Non-combat 3 | . . . . . . . 1 . . . . 1 . . 1 . . . . . . . . . . . Combat 3 | . . . . . . 1 . . . . . 2 . . . . . . . . . . . . . . Robot Hacks Applied 7 | . . . . . . 1 1 . . . . 4 . . 1 . . . . . . . . . . . parse_system 5 | . . . . . . 1 . . . . . 4 . . . . . . . . . . . . . . find_chute 2 | . . . . . . . 1 . . . . . . . 1 . . . . . . . . . . . Relay Couplers Released . | . . . . . . . . . . . . . . . . . . . . . . . . . . . Fabnet Peak Effective % . | . . . . . . . . . . . . . . . . . . . . . . . . . . . Robots Rewired 19 | . . . . . . . . . . . . . . . . . . . . . . . 19 . . . Allies Hacked . | . . . . . . . . . . . . . . . . . . . . . . . . . . . Hacks Repelled . | . . . . . . . . . . . . . . . . . . . . . . . . . . . Allies | -11 -10 -9 -8 -8 -8 -8 -6 -6 -6 -6 -6 -6 -6 -5 -5 -5 -5 -5 -5 -5 -4 -4 -4 -4 -4 -4 -------- Run | Yrd Mat Mat Mat Sto Rec Scr Fac Was Fac Low Low Zio Dee Pro Fac Was Fac Upp Upp Zhi Pro Fac Ext Cet Arc Hub Total Allies 70 | . . . . . . . 1 20 . . . 2 . . 3 20 2 . . . . . 22 . . . Largest Group 19 | . . . . . . . 1 19 16 . . 2 2 . 3 19 13 . . . . . 10 . . . Highest-Rated Group 742 | . . . . . . . 26 742 558 . . 192 192 . 126 720 469 . . . . . 533 . . . Highest-Rated Ally 159 | . . . . . . . 26 145 46 . . 96 96 . 42 50 46 . . . . . 159 . . . Initial UFD Resources 118 | . . . . . . . 24 42 42 54 54 54 54 56 56 80 80 96 96 96 100 100 116 118 118 118 Total Orders 21 | . . . . . . . . . . . . . . . 7 . 3 . . . . 4 3 . . 4 GUARD 1 | . . . . . . . . . . . . . . . . . . . . . . . 1 . . . RETURN 20 | . . . . . . . . . . . . . . . 7 . 3 . . . . 4 2 . . 4 Ally Attacks 463 | . . . . . . . . 68 62 . . . 26 . 15 109 66 . . . . . 117 . . . Total Damage 9887 | . . . . . . . . 1434 1342 . . . 831 . 416 963 1475 . . . . . 3426 . . . Kills 57 | . . . . . . . . 2 8 . . . 6 . 3 5 9 . . . . . 24 . . . Allies Corrupted . | . . . . . . . . . . . . . . . . . . . . . . . . . . . Allies Melted 3 | . . . . . . . . . . . . . . . . . 1 . . . . . 2 . . . X0-1V1 Amusement Gains 257 | . 4 5 40 20 . . 15 . 5 . . . . 10 15 . 10 10 . . . 25 . . . 98 Good Acts 130 | . 1 2 4 8 . . 13 11 6 3 1 . . 2 9 4 13 5 7 . 3 14 10 2 1 11 Bad Acts 106 | . . 2 5 4 . . 5 12 16 . 5 . . 1 8 4 2 1 3 . 3 8 10 4 4 9 Intel | -11 -10 -9 -8 -8 -8 -8 -6 -6 -6 -6 -6 -6 -6 -5 -5 -5 -5 -5 -5 -5 -4 -4 -4 -4 -4 -4 ------- Run | Yrd Mat Mat Mat Sto Rec Scr Fac Was Fac Low Low Zio Dee Pro Fac Was Fac Upp Upp Zhi Pro Fac Ext Cet Arc Hub Active Infowar (turns) 1868 | 9 382 . . . . . 206 . . . . 2 3 5 40 . 44 27 14 46 50 333 99 . . 608 IFF 606 | . . . . . . . . . . . . . . . . . . . . . . . . . . 606 Terrain 117 | 7 110 . . . . . . . . . . . . . . . . . . . . . . . . . Seismic 391 | 9 382 . . . . . . . . . . . . . . . . . . . . . . . . . T.N.C. 206 | . . . . . . . 206 . . . . . . . . . . . . . . . . . . . Cloaking 316 | . . . . . . . . . . . . . 3 5 . . . . . 35 41 231 . . . 1 Jamming 40 | . . . . . . . . . . . . . . . 40 . . . . . . . . . . . ECM 332 | . . . . . . . . . . . . 2 . . . . 44 27 14 11 9 124 99 . . 2 Robot Analysis Total 8 | . . . . . . 4 . . . . . . . . . . . . . 4 . . . . . . Derelict Logs Recovered 7 | . . . . . . . . . . 1 1 2 . . . . . 1 1 . 1 . . . . . Drone Launches 20 | . . . . . . . . . . . . . . . 7 . 3 . . . . 4 2 . . 4 Drone Recoveries 20 | . . . . . . . . . . . . . . . 7 . 3 . . . . 4 2 . . 4 Exploration | -11 -10 -9 -8 -8 -8 -8 -6 -6 -6 -6 -6 -6 -6 -5 -5 -5 -5 -5 -5 -5 -4 -4 -4 -4 -4 -4 ------------- Run | Yrd Mat Mat Mat Sto Rec Scr Fac Was Fac Low Low Zio Dee Pro Fac Was Fac Upp Upp Zhi Pro Fac Ext Cet Arc Hub Turns Passed 11906 | 52 1265 93 475 605 33 934 651 378 589 96 214 592 822 116 502 299 415 392 147 95 132 458 948 286 564 753 Spaces Moved 20323 | 54 1002 190 771 564 31 1799 1538 537 1454 290 666 1499 1294 312 1295 374 984 935 480 207 465 1323 1144 188 251 676 Core 796 | 53 675 . . . . . . . . . . . . . . . . . . . . . 4 44 20 . Treads 174 | 1 14 . . . . . . . . . . . . . . . . . . . . . . . 159 . Legs . | . . . . . . . . . . . . . . . . . . . . . . . . . . . Wheels . | . . . . . . . . . . . . . . . . . . . . . . . . . . . Hover 1623 | . . . . 408 31 436 . . . . . . . . . . . . . . . . . . 72 676 Flight 17730 | . 313 190 771 156 . 1363 1538 537 1454 290 666 1499 1294 312 1295 374 984 935 480 207 465 1323 1140 144 . . Fastest Speed 20 | 50 37 37 34 34 110 32 27 27 27 28 25 25 25 25 21 21 23 23 23 23 20 20 23 34 40 40 Average Speed 33 | 52 59 37 34 52 110 51 27 27 28 28 26 25 31 25 21 25 23 23 23 23 21 20 27 65 160 47 Slowest Speed 350 | 160 160 37 40 110 110 110 107 106 29 28 28 25 92 25 21 91 25 23 23 100 23 107 165 250 350 100 Overloaded Moves . | . . . . . . . . . . . . . . . . . . . . . . . . . . . Propulsion Burnouts . | . . . . . . . . . . . . . . . . . . . . . . . . . . . Robots Hopped 89 | . . . 15 1 . 4 10 . 6 . . . 1 . . 2 15 . . . . 16 19 . . . Potential Cave-ins 11 | . . . . . . . . . 3 . . . . . 4 . 2 . 2 . . . . . . . Cave-ins Triggered . | . . . . . . . . . . . . . . . . . . . . . . . . . . . Teleports 1 | . . . . . . . . . . . . . . . . . . . . . . . . . . 1 Exploration Rate (%) 61 | 4 87 29 54 87 8 90 38 94 42 52 71 87 74 43 36 96 38 91 58 60 72 40 80 77 96 63 Regions Visited 26 Branch Regions 16 Pre-discovered Areas 8 | . 2 . . . . . 1 . . 1 . 1 . . . . . . . 3 . . . . . . Known Exits Taken 11 | . 1 1 1 1 . . . . 1 . . . . 1 . . 1 . 1 . 1 1 1 . . . Unknown Exits Taken 11 | 1 . . . . 1 1 . . . 1 1 1 1 . . . . 1 . 1 . . . 1 1 . Scrap Searched 19 | . . . . . . 6 . . . 1 1 2 . . . . . 3 3 . 3 . . . . . Spaces Dug 89 | . 7 . . . . . 19 . 7 . 11 . 3 1 11 . 12 2 2 . . 9 . . . 5 Terrain Destroyed 735 | . 7 . . . . . 23 5 10 . 11 . 177 48 13 1 42 97 5 . . 12 15 130 10 129 Melee 69 | . 7 . . . . . 13 . 6 . 10 . 3 1 8 . 7 2 2 . . 7 . . . 3 Projectile 141 | . . . . . . . 10 5 4 . 1 . 1 . 5 1 10 . 3 . . 5 15 . 10 71 AOE 525 | . . . . . . . . . . . . . 173 47 . . 25 95 . . . . . 130 . 55 Terrain Rammed . | . . . . . . . . . . . . . . . . . . . . . . . . . . . Walls Destroyed . | . . . . . . . . . . . . . . . . . . . . . . . . . . . Machines Disabled . | . . . . . . . . . . . . . . . . . . . . . . . . . . . Actions | -11 -10 -9 -8 -8 -8 -8 -6 -6 -6 -6 -6 -6 -6 -5 -5 -5 -5 -5 -5 -5 -4 -4 -4 -4 -4 -4 --------- Run | Yrd Mat Mat Mat Sto Rec Scr Fac Was Fac Low Low Zio Dee Pro Fac Was Fac Upp Upp Zhi Pro Fac Ext Cet Arc Hub Total 23933 | 70 1540 205 910 724 30 1810 1663 695 1557 299 683 1655 1652 337 1462 538 1099 1093 505 242 488 1441 1648 274 346 967 Wait 1902 | 1 380 . 70 37 . . 4 61 36 . 1 106 293 3 61 120 77 136 10 12 7 39 272 2 19 155 Move 20136 | 53 1001 189 740 561 30 1792 1520 536 1441 289 665 1498 1291 311 1295 369 958 934 479 206 464 1291 1110 187 250 676 Hop 74 | . . . 15 1 . 2 8 . 6 . . . 1 . . 2 10 . . . . 15 14 . . . Pick Up 152 | 5 18 2 9 7 . 3 13 8 6 1 1 3 3 . 14 3 . 1 3 3 2 13 7 3 14 10 Fast Attach 115 | 5 2 1 10 12 . 1 6 4 4 2 1 . 2 1 7 1 3 4 1 3 2 3 13 3 9 15 Attach 76 | . 14 2 4 . . 2 4 2 1 . 1 1 3 2 4 . 1 . 1 . 1 6 6 6 7 8 Detach 29 | . 10 . 1 . . 1 1 . 1 . . . 1 1 . . 1 . . . . 3 4 4 . 1 Swap 256 | . 9 3 10 15 . 4 32 3 14 4 2 12 16 4 28 5 13 3 1 9 7 16 17 2 6 21 Drop 199 | . 19 4 15 8 . 4 19 11 12 2 1 3 4 . 18 5 6 4 3 5 3 16 12 4 10 11 Fire 565 | 6 78 2 36 72 . . 29 66 8 . 1 . 27 5 8 23 17 5 3 . . 5 49 55 17 53 Melee 213 | . 9 2 . 3 . 1 27 4 28 1 10 5 3 2 27 10 13 6 4 4 2 21 10 . 14 7 Ram 4 | . . . . . . . . . . . . . . . . . . . . . . . . . . 4 Kick . | . . . . . . . . . . . . . . . . . . . . . . . . . . . Crush . | . . . . . . . . . . . . . . . . . . . . . . . . . . . Escape Stasis 49 | . . . . . . . . . . . . . . 8 . . . . . . . 13 28 . . . Rewire 106 | . . . . . . . . . . . . . . . . . . . . . . . 106 . . . Trap . | . . . . . . . . . . . . . . . . . . . . . . . . . . . Miscellaneous 57 | . . . . 8 . . . . . . . 27 8 . . . . . . . . . . 8 . 6 Route ------- -11/Scrapyard -10/Materials (discovered 6 exits: *Mat x3 / *Min x2 / *Sub) -9/Materials (discovered 4 exits: *Mat x2 / Min x2) -8/Materials (discovered 3 exits: *Fac / *Sto x2) -8/Storage (discovered 2 exits: *Fac / *Rec) -8/Recycling -8/Scraptown (discovered 2 exits: *Fac x2) -6/Factory (discovered 6 exits: *Fac x4 / *Low x2) -6/Waste -6/Factory (discovered 3 exits: *Fac / *Low x2) -6/Lower Caves -6/Lower Caves (discovered 2 exits: *Fac / *Zio) -6/Zion (discovered 2 exits: [*Dee] / [*Pro]) -6/Deep Caves -5/Proximity Caves -5/Factory (discovered 6 exits: *Fac x4 / Upp x2) -5/Waste -5/Factory (discovered 6 exits: *Fac x4 / *Upp x2) -5/Upper Caves -5/Upper Caves (discovered 2 exits: Fac / *Zhi) -5/Zhirov -4/Proximity Caves -4/Factory (discovered 9 exits: *Res x4 / Upp x2 / *Ext x2 / Arm) -4/Extension (discovered 3 exits: *Res x2 / *Cet) -4/Cetus (discovered 2 exits: *Res / [*Arc]) -4/Archives (discovered 3 exits: *Res / *Hub x2) -4/Hub_04(d) (discovered 4 exits: *Res x4) History --------- Turn | Location | Event 7 | -11/Scrapyard | Discovered new exit (range 15) 53 | -11/Scrapyard | Entered Materials 142 | -10/Materials | Discovered new exit (range 12) 313 | -10/Materials | Discovered new exit (range 7) 317 | -10/Materials | Build established: Mutant 328 | -10/Materials | Discovered new exit (range 8) 497 | -10/Materials | Discovered new exit (range 7) 952 | -10/Materials | Identified exit to Subcaves 952 | -10/Materials | Identified exit to Mines 952 | -10/Materials | Identified exit to Materials 1004 | -10/Materials | Learned Storage stockpile data 1046 | -10/Materials | Learned 2 Materials zone layouts 1076 | -10/Materials | Learned location of 2 exits from Mines 1095 | -10/Materials | Learned Storage emergency access door positions 1105 | -10/Materials | Learned 4 Subcaves zone layouts 1115 | -10/Materials | Loaded intel: 1 repair station location 1133 | -10/Materials | Learned 4 Subcaves zone layouts 1141 | -10/Materials | Build established: Scavenger-Mutant 1163 | -10/Materials | Learned location of 1 exit from Storage 1205 | -10/Materials | Learned location of 2 exits from Subcaves 1223 | -10/Materials | Prayed at D.C.S.S. Altar Unit 1238 | -10/Materials | X0-1V1 foreshadows a heat wave 1318 | -10/Materials | Entered another Materials area 1318 | -9/Materials | Evolved 2 slots: Utility x1, Weapon x1 1319 | -9/Materials | Identified exit to Mines 1320 | -9/Materials | Identified exit to Materials 1356 | -9/Materials | X0-1V1 activates XOMVISION 1377 | -9/Materials | Core integrity permanently improved by X0-1V1 (+250) 1393 | -9/Materials | X0-1V1 upgraded hostiles (x1) 1403 | -9/Materials | Discovered exit to Materials (range 16) 1408 | -9/Materials | X0-1V1 added 0b10 threat records associated with you (minor) 1411 | -9/Materials | Entered another Materials area 1411 | -8/Materials | Evolved 2 slots: Propulsion x1, Weapon x1 1432 | -8/Materials | Identified exit to Storage 1482 | -8/Materials | X0-1V1 activates XOMVISION 1482 | -8/Materials | Mass support permanently improved by X0-1V1 (+8; -220 max core) 1583 | -8/Materials | System corruption reached 10% 1657 | -8/Materials | X0-1V1 enhanced Transport squad support 1662 | -8/Materials | Build established: Scavenger-Gunner 1767 | -8/Materials | Destroyed 8 combat bots 1777 | -8/Materials | Discovered new exit (range 5) 1886 | -8/Materials | Entered Storage 1887 | -8/Storage | Identified exit to Factory 1963 | -8/Storage | Heat dissipation permanently improved by X0-1V1 (+25; -125 max core) 1999 | -8/Storage | Weapon slot count temporarily expanded by X0-1V1 (+3) 2023 | -8/Storage | Garrison activated, responded to threat 2207 | -8/Storage | X0-1V1 mutated your Propulsion slot to Utility slot 2268 | -8/Storage | Identified exit to Recycling 2268 | -8/Storage | X0-1V1 revealed exit location to -8/Recycling 2489 | -8/Storage | Used back door to open Recycling access 2491 | -8/Storage | Entered Recycling 2499 | -8/Recycling | Scanned before Scraplab entrance 2515 | -8/Recycling | Entered Scraplab 2523 | -8/Recycling | Discovered new exit (range 2) 2524 | -8/Recycling | Entered Scraptown 2524 | -8/Scraptown | System corruption cleaned by C-Scrubber 2526 | -8/Scraptown | Build established: Gunner 2905 | -8/Scraptown | Visited Shadow of the Wyrm 2920 | -8/Scraptown | Visited Awakened 2970 | -8/Scraptown | Visited Red Mages 2985 | -8/Scraptown | Visited Bundlers 3051 | -8/Scraptown | Visited Fellowship of the Rings 3059 | -8/Scraptown | Visited Cyclists 3071 | -8/Scraptown | Visited TADAMA 3084 | -8/Scraptown | Visited UFD Registry 3084 | -8/Scraptown | Registered with UFD as "Zeroshaft" 3092 | -8/Scraptown | Visited Botcube Research 3097 | -8/Scraptown | Visited Science Guys 3108 | -8/Scraptown | Visited Analyses Database 3151 | -8/Scraptown | Visited Scrap Suit Storage 3155 | -8/Scraptown | Visited Derelict Rescue Squad 3165 | -8/Scraptown | Found DRS Beacon 3172 | -8/Scraptown | Visited Scrapoid Pod Storage 3180 | -8/Scraptown | Visited Curators Association 3192 | -8/Scraptown | Visited Observation Area 3205 | -8/Scraptown | Visited LU-1G1's Boring Crew 3211 | -8/Scraptown | Visited Chapter 10 3233 | -8/Scraptown | Entered Cyclist Reading Room 3280 | -8/Scraptown | Discovered new exit (range 11) 3299 | -8/Scraptown | Build established: Sprinter 3441 | -8/Scraptown | Met Optimus 3441 | -8/Scraptown | Accepted into 0bPrime 3457 | -8/Scraptown | Discovered new exit (range 5) 3458 | -8/Scraptown | Entered Factory 3458 | -6/Factory | Evolved 4 slots: Propulsion x2, Utility x2 3514 | -6/Factory | Lost 3 parts (1n2u) 3519 | -6/Factory | Discovered new exit (range 4) 3555 | -6/Factory | X0-1V1 mutated your Weapon slot to Propulsion slot 3574 | -6/Factory | Discovered new exit (range 11) 3604 | -6/Factory | Identified exit to Factory 3604 | -6/Factory | X0-1V1 revealed exit location to -5/Factory 3676 | -6/Factory | Central database locked down 3692 | -6/Factory | Identified exit to Lower Caves 3692 | -6/Factory | X0-1V1 revealed exit location to -6/Lower Caves 3698 | -6/Factory | Loaded intel: 8 recycling unit locations 3704 | -6/Factory | X0-1V1 vaporized surrounding terrain (radius 18) 3810 | -6/Factory | X0-1V1 revealed exit location to -5/Factory 3871 | -6/Factory | Learned location of Protoforge (-2) 3943 | -6/Factory | X0-1V1 activates XOMVISION 4052 | -6/Factory | X0-1V1 revealed exit location to -5/Factory 4109 | -6/Factory | Manually triggered Chute Trap 4109 | -6/Factory | Sucked down chute 4109 | -6/Factory | Entered Waste 4118 | -6/Waste | Spotted C-40 Crusher 4173 | -6/Waste | Spotted C-40 Crusher 4174 | -6/Waste | Destroyed C-40 Crusher 4193 | -6/Waste | Spotted C-40 Crusher 4246 | -6/Waste | Spotted C-40 Crusher 4252 | -6/Waste | Spotted C-40 Crusher 4273 | -6/Waste | Spotted C-40 Crusher 4295 | -6/Waste | Discovered new exit (range 13) 4301 | -6/Waste | Warlord forces began an assault 4325 | -6/Waste | Destroyed C-40 Crusher 4342 | -6/Waste | Destroyed C-40 Crusher 4343 | -6/Waste | X0-1V1 turns hostiles against one another 4347 | -6/Waste | Allies destroyed C-40 Crusher 4402 | -6/Waste | Destroyed C-40 Crusher 4442 | -6/Waste | X0-1V1 rewrote JS-MH8(l) IFF filter 4487 | -6/Waste | Entered Factory 4487 | -6/Factory | Accompanied by 16 allies 4490 | -6/Factory | X0-1V1 sent you into danger 4514 | -6/Factory | X0-1V1 enhanced Transport squad support 4519 | -6/Factory | X0-1V1 activates XOMVISION 4521 | -6/Factory | Loaded intel: 8 recycling unit locations 4564 | -6/Factory | X0-1V1 redirected Transport squads to designated parking area 4565 | -6/Factory | Allied Derelicts emerged from ambush trap array 4611 | -6/Factory | X0-1V1 mutated your Propulsion slot to Power slot 4611 | -6/Factory | X0-1V1 added 0b10 threat records associated with you (considerable) 4646 | -6/Factory | X0-1V1 mutated your Utility slot to Weapon slot 4689 | -6/Factory | Lost 4 allies 4812 | -6/Factory | Discovered exit to Factory (range 16) 4873 | -6/Factory | Spotted B-75 Beast 4943 | -6/Factory | X0-1V1 added 0b10 threat records associated with you (considerable) 5033 | -6/Factory | System corruption reached 10% 5076 | -6/Factory | Entered Lower Caves 5110 | -6/Lower Caves | Spotted B-75 Beast 5144 | -6/Lower Caves | Encountered a Warlord checkpoint 5146 | -6/Lower Caves | Learned location of Extension (-4) 5147 | -6/Lower Caves | Found DCF Scrap (11 items) 5151 | -6/Lower Caves | Discovered new exit (range 15) 5172 | -6/Lower Caves | Entered another Lower Caves area 5174 | -6/Lower Caves | Learned Factory non-interactive machine intel 5179 | -6/Lower Caves | Discovered exit to Factory (range 14) 5249 | -6/Lower Caves | Encountered a Warlord checkpoint 5257 | -6/Lower Caves | X0-1V1 mutated your Weapon slot to Propulsion slot 5322 | -6/Lower Caves | Discovered new exit (range 9) 5359 | -6/Lower Caves | X0-1V1 sent hostile H-55 Commando (x2) 5380 | -6/Lower Caves | X0-1V1 activates XOMVISION 5386 | -6/Lower Caves | Entered Zion 5398 | -6/Zion | System corruption cleaned by Quarantine Array 5407 | -6/Zion | Discovered new exit (range 10) 5453 | -6/Zion | Learned location of Armory (-4) 5513 | -6/Zion | Learned Factory emergency access door positions 5520 | -6/Zion | Given A8's code to call for help 5522 | -6/Zion | Learned Factory emergency access door positions 5574 | -6/Zion | Given the Hacking Drone Bay 5576 | -6/Zion | Found Prototype Device 5620 | -6/Zion | Found Prototype Device 5620 | -6/Zion | Identified Phasing AFG 5621 | -6/Zion | Identified Hacking Drone Bay 5670 | -6/Zion | Turned away by Imprinter 5713 | -6/Zion | Found Prototype Special Weapon 5713 | -6/Zion | Identified RU-N14's Throwing Claymores 5717 | -6/Zion | Found RU-N14's Throwing Claymores 5874 | -6/Zion | Enhanced Grunt warped into view, answering call for help 5881 | -6/Zion | Enhanced Grunt warped into view, answering call for help 5961 | -6/Zion | Discovered new exit (range 3) 5961 | -6/Zion | Saw the warning signs outside the Deep Caves entrance 5978 | -6/Zion | Entered Deep Caves 5978 | -6/Deep Caves | Accompanied by 2 allies 6067 | -6/Deep Caves | Attacked by Z-Imprinter 6071 | -6/Deep Caves | Destroyed Z-Imprinter 6084 | -6/Deep Caves | Found Prototype Protection 6084 | -6/Deep Caves | Identified Zio. Weapon Casing 6106 | -6/Deep Caves | Z-Facility disabled 6499 | -6/Deep Caves | Found Prototype Device 6499 | -6/Deep Caves | Identified Cloak of Protection 6538 | -6/Deep Caves | Discovered new exit (range 7) 6610 | -6/Deep Caves | Spotted Golem 6800 | -6/Deep Caves | Entered Proximity Caves 6808 | -5/Proximity Caves | X0-1V1 sent hostile X-72 Disruptor (x3) 6849 | -5/Proximity Caves | Lost 4 parts (4u) 6910 | -5/Proximity Caves | Discovered exit to Factory (range 10) 6914 | -5/Proximity Caves | Core integrity fell below 50% 6916 | -5/Proximity Caves | Entered Factory 6916 | -5/Factory | Evolved 2 slots: Propulsion x1, Weapon x1 6918 | -5/Factory | Loaded intel: 245 non-interactive machine locations 6985 | -5/Factory | X0-1V1 redirected Transport squads to designated parking area 6994 | -5/Factory | Discovered new exit (range 4) 7007 | -5/Factory | Identified exit to Factory 7036 | -5/Factory | Identified exit to Upper Caves 7066 | -5/Factory | Loaded intel: 8 recycling unit locations 7094 | -5/Factory | X0-1V1 released a cloud of subatomizers 7113 | -5/Factory | X0-1V1 sent you into danger 7123 | -5/Factory | X0-1V1 enhanced Transport squad support 7127 | -5/Factory | Spotted B-75 Beast 7150 | -5/Factory | X0-1V1 sent you to a vault 7199 | -5/Factory | Garrison activated, responded to threat 7210 | -5/Factory | X0-1V1 rewrote Carver 6a IFF filter 7253 | -5/Factory | X0-1V1 vaporized surrounding terrain (radius 16) 7273 | -5/Factory | X0-1V1 activates XOMVISION 7416 | -5/Factory | X0-1V1 vaporized surrounding terrain (radius 23) 7418 | -5/Factory | Manually triggered Chute Trap 7418 | -5/Factory | Sucked down chute 7418 | -5/Factory | Entered Waste 7419 | -5/Waste | Joined by Warlord forces that had cleared the area 7469 | -5/Waste | Murdered 4 allies 7485 | -5/Waste | Mic. Fission Core+ reconfigured into Item Mimic 7508 | -5/Waste | X0-1V1 mutated your Propulsion slot to Weapon slot 7548 | -5/Waste | A Compactor rumbled back to life 7548 | -5/Waste | Spotted C-40 Crusher 7553 | -5/Waste | Weapon slot count temporarily expanded by X0-1V1 (+3) 7554 | -5/Waste | Allies destroyed C-40 Crusher 7609 | -5/Waste | Discovered new exit (range 19) 7610 | -5/Waste | Biomechanical Wings reconfigured into Item Mimic 7635 | -5/Waste | Found Broken Adv. Powered Armor 7698 | -5/Waste | X0-1V1 activates XOMVISION 7717 | -5/Waste | Entered Factory 7717 | -5/Factory | Accompanied by 13 allies 7766 | -5/Factory | Lost 3 allies 7808 | -5/Factory | Loaded intel: 8 recycling unit locations 7820 | -5/Factory | Discovered exit to Factory (range 10) 7967 | -5/Factory | Build established: Scavenger-Sprinter 8008 | -5/Factory | Discovered exit to Upper Caves (range 15) 8014 | -5/Factory | X0-1V1 sent allied Wasp (x2) 8017 | -5/Factory | Discovered exit to Upper Caves (range 15) 8025 | -5/Factory | X0-1V1 sent you to a vault 8132 | -5/Factory | Entered Upper Caves 8172 | -5/Upper Caves | Encountered a Warlord checkpoint 8200 | -5/Upper Caves | Entered a destroyed Warlord outpost 8302 | -5/Upper Caves | X0-1V1 sent you into danger 8310 | -5/Upper Caves | Learned Factory security intel 8485 | -5/Upper Caves | Discovered new exit (range 14) 8519 | -5/Upper Caves | X0-1V1 activates XOMVISION 8524 | -5/Upper Caves | Entered another Upper Caves area 8537 | -5/Upper Caves | Forcibly received Sfc. Transmogifier from X0-1V1 8557 | -5/Upper Caves | Learned location of 1 exit from Factory 8584 | -5/Upper Caves | Identified exit to Zhirov 8584 | -5/Upper Caves | X0-1V1 revealed exit location to -5/Zhirov 8597 | -5/Upper Caves | X0-1V1 activates XOMVISION 8638 | -5/Upper Caves | X0-1V1 revealed exit location to -4/Factory 8663 | -5/Upper Caves | X0-1V1 sent you into danger 8664 | -5/Upper Caves | Attracted the attention of an 0b10 outpost 8668 | -5/Upper Caves | Encountered a Warlord checkpoint 8668 | -5/Upper Caves | X0-1V1 mutated your Weapon slot to Utility slot 8671 | -5/Upper Caves | Entered Zhirov 8672 | -5/Zhirov | Discovered new exit (range 3) 8676 | -5/Zhirov | Met Zhirov 8681 | -5/Zhirov | Learned location of Quarantine (-2) 8681 | -5/Zhirov | Learned location of Testing (-3) 8681 | -5/Zhirov | Learned location of Command (-1) 8683 | -5/Zhirov | Zhirov requested help retrieving the SGEMP Prototype 8686 | -5/Zhirov | Found Alien Artifact 8686 | -5/Zhirov | Identified Integrated Dissipator 8686 | -5/Zhirov | Installed Integrated Dissipator, increased core heat dissipation (+20) 8743 | -5/Zhirov | Found Alien Artifact 8766 | -5/Zhirov | Entered Proximity Caves 8775 | -4/Proximity Caves | X0-1V1 sent you into danger 8776 | -4/Proximity Caves | Attracted the attention of an 0b10 base 8776 | -4/Proximity Caves | Learned 8 Factory zone layouts 8776 | -4/Proximity Caves | Learned 8 Research zone layouts 8836 | -4/Proximity Caves | X0-1V1 mutated your Utility slot to Propulsion slot 8838 | -4/Proximity Caves | Spotter reported a threat 8838 | -4/Proximity Caves | Spotter reported a threat 8843 | -4/Proximity Caves | Learned location of 1 exit from Research 8863 | -4/Proximity Caves | Discovered exit to Factory (range 9) 8898 | -4/Proximity Caves | Entered Factory 8898 | -4/Factory | Evolved 2 slots: Utility x2 8899 | -4/Factory | Identified exit to Research 8900 | -4/Factory | Identified exit to Extension 8920 | -4/Factory | Identified exit to Upper Caves 8920 | -4/Factory | Identified exit to Armory 8965 | -4/Factory | X0-1V1 added 0b10 threat records associated with you (minor) 8976 | -4/Factory | X0-1V1 enhanced Transport squad support 8977 | -4/Factory | X0-1V1 sent someone to clean up after you 9020 | -4/Factory | Central database locked down 9083 | -4/Factory | X0-1V1 added 0b10 threat records associated with you (minor) 9118 | -4/Factory | Loaded intel: 8 recycling unit locations 9148 | -4/Factory | Search patrols dispatched 9187 | -4/Factory | X0-1V1 whisked you away to safety 9261 | -4/Factory | X0-1V1 activates XOMVISION 9331 | -4/Factory | X0-1V1 sent you into danger 9356 | -4/Factory | Entered Extension 9362 | -4/Extension | X0-1V1 dreamt of freedom 9363 | -4/Extension | Loaded intel: 1 recycling unit location 9373 | -4/Extension | Rescued a captive Derelict 9377 | -4/Extension | Rescued a captive Derelict 9387 | -4/Extension | Rescued a captive Derelict 9394 | -4/Extension | Rescued a captive Derelict 9409 | -4/Extension | Rescued A7 9512 | -4/Extension | X0-1V1 sent you into danger 9512 | -4/Extension | Identified exit to Cetus 9512 | -4/Extension | X0-1V1 revealed exit location to -4/Cetus 9514 | -4/Extension | X0-1V1 rewrote D4-0RT(g) IFF filter 9570 | -4/Extension | System corruption reached 10% 9619 | -4/Extension | Spotted B-86 Titan 9773 | -4/Extension | X0-1V1 activates XOMVISION 9836 | -4/Extension | Warlord forces began an assault 9939 | -4/Extension | Allies destroyed B-86 Titan 9968 | -4/Extension | Spotted B-86 Titan 9985 | -4/Extension | X0-1V1 announced a LAN party 9993 | -4/Extension | X0-1V1 activates XOMVISION 10015 | -4/Extension | Discovered exit to Research (range 15) 10020 | -4/Extension | Allies destroyed B-86 Titan 10050 | -4/Extension | Lost 5 allies 10252 | -4/Extension | Lost 4 allies 10253 | -4/Extension | Extracted ID and sensor layout for unrecognized location from A7's data core 10270 | -4/Extension | Destroyed 7 combat bots 10282 | -4/Extension | X0-1V1 added 0b10 threat records associated with you (considerable) 10297 | -4/Extension | Discovered exit to Research (range 10) 10304 | -4/Extension | Entered Cetus 10313 | -4/Cetus | Lost 3 allies 10314 | -4/Cetus | Spotted Cetus Guard 10314 | -4/Cetus | Spotted Cetus Guard 10320 | -4/Cetus | Spotted Cetus Guard 10321 | -4/Cetus | Core integrity restored by X0-1V1 (+253) 10337 | -4/Cetus | Spotted Cetus Guard 10342 | -4/Cetus | Destroyed Cetus Guard 10356 | -4/Cetus | Destroyed Cetus Guard 10371 | -4/Cetus | Destroyed Cetus Guard 10376 | -4/Cetus | Destroyed Cetus Guard 10415 | -4/Cetus | Lost 4 parts (1p1u2w) 10455 | -4/Cetus | X0-1V1 made a cryptic comment about sterilization and BL-4Z3 10460 | -4/Cetus | Discovered new exit (range 15) 10466 | -4/Cetus | Spotted Cetus Guard 10467 | -4/Cetus | Spotted Cetus Guard 10481 | -4/Cetus | Spotted Cetus Guard 10490 | -4/Cetus | Destroyed Cetus Guard 10494 | -4/Cetus | Sterilization system engaged 10494 | -4/Cetus | Non-combat units ordered to evacuate 10494 | -4/Cetus | Destroyed Cetus Guard 10496 | -4/Cetus | Destroyed Cetus Guard 10519 | -4/Cetus | Destroyed Cetus Guard 10531 | -4/Cetus | Discovered exit to Research (range 15) 10538 | -4/Cetus | Met Revision 17 10546 | -4/Cetus | Lost 6 parts (2p3n1w) 10590 | -4/Cetus | Entered Archives 10740 | -4/Archives | Discovered new exit (range 15) 10793 | -4/Archives | Discovered exit to Research (range 15) 10905 | -4/Archives | Build established: Scavenger-Tank 11061 | -4/Archives | Discovered new exit (range 14) 11154 | -4/Archives | Entered Hub_04(d) 11260 | -4/Hub_04(d) | X0-1V1 vaporized surrounding terrain (radius 17) 11274 | -4/Hub_04(d) | Build established: Scavenger-Gunner 11360 | -4/Hub_04(d) | X0-1V1 sent you to a vault 11390 | -4/Hub_04(d) | X0-1V1 redirected Transport squads to designated parking area 11392 | -4/Hub_04(d) | X0-1V1 enhanced Transport squad support 11489 | -4/Hub_04(d) | X0-1V1 activates XOMVISION 11600 | -4/Hub_04(d) | Adv. KE Penetrator reconfigured into Item Mimic 11619 | -4/Hub_04(d) | X0-1V1 upgraded hostiles (x3) 11667 | -4/Hub_04(d) | Identified Transdimensional Reconstructor 11667 | -4/Hub_04(d) | Warped through subspace 11668 | -4/Hub_04(d) | Core integrity fell below 50% 11688 | -4/Hub_04(d) | Lost 12 parts (1p3n4u4w) 11739 | -4/Hub_04(d) | Network Hub disabled 11782 | -4/Hub_04(d) | X0-1V1 whisked you away to safety 11810 | -4/Hub_04(d) | Network Hub disabled 11825 | -4/Hub_04(d) | Core integrity restored by X0-1V1 (+232) 11900 | -4/Hub_04(d) | Spotted Lightning 11904 | -4/Hub_04(d) | Spotted Lightning 11904 | -4/Hub_04(d) | Spotted Lightning 11906 | -4/Hub_04(d) | Core integrity fell below 20% 11907 | -4/Hub_04(d) | Destroyed by Lightning with EMDS Last Messages --------------- 11902_ Slammed into H-77 Assassin. 11902_ Imp. Corruption Screen intercepted 2% system corruption. 11903_ Slammed into H-77 Assassin. 11903_ EMDS Slug penetrates Wall. 11903_ Imp. Corruption Screen intercepted 1% system corruption. 11903_ EMDS Slug penetrates Wall. 11904_ Slammed into P-70 Sage. 11904_ Imp. Corruption Screen intercepted 2% system corruption. 11904_ Penetrated by Slug. 11904_ Penetrated by EMDS Slug. 11904_ Imp. Corruption Screen intercepted 2% system corruption. 11905_ Slug penetrates P-70 Sage. 11905_ Imp. Corruption Screen intercepted 1% system corruption. 11905_ X0-1V1 ensures you are ready for glorious battle (+Plasma Sword). 11905_ Penetrated by EMDS Slug. 11906_ Critical hit (Burn: +37). 11906_ Penetrated by Slug. 11907_ Penetrated by EMDS Slug. 11907_ Imp. Corruption Screen intercepted 1% system corruption. 11907_ X0-1V1 chortles! Map ----- +----------------------------------------------------+ | | | | | | | | | #######?#?????????????????????????????############ | | "" """" #??????????????????????######## | | "" """" #??????????????????????# "" """ """ | | "" """" #??????????????????????# ## | | "" """" #??????????????????????# ## """ """ | | #?????????????????###### ## | | #?????????????????# + ## """ """ | | #?????????????????# #### ## | | ##+########???????????????# #??# #######+##### | | # + #???????????????# #??# # | | # """ #??????????######/#### # ##### | | + #??????????# # + ##+####### | | # """ #??????????# !!! = # # # | | # #??????????# =!!! ##+#### # " | | # ] #??????????# !! + # ""T"" | | ########??????????# """## + """"" | | ## #?????????????????# "" T"## ############"## | | ##+##############???## "## ## #? | | ??# ## ## " #? | | ??########/### Y # "" #? | | " " " ########hYch # "" #? | | " " " " " + k @ h # """" "" #? | | " " " " " ##### #######! # """"" #? | | " "" !! ???????#+????#### ## """ #? | | "G"" ! ????????????? ## ## " #? | | #################???????????? ## ## #? | | ### ?#?????##########???????? ## ## #? | | #"#"##???# #???????? ## #######++#####? | | ???# #????????" ## #?????# #????? | | ## * " "???# #????????" ## #?????# #????? | | # !%=" "" ?# #????????????????????????????? | | # * "" + #????????????????????????????? | | # """ # #????????????????????????????? | | # # #????????????????????????????? | | # # #????????????????????????????? | | # #????????????????????????????? | | ""#+#########+####????????????????????????????? | | ^ =%![ ???????????????????????????????? | | # < ^ ^ =|!= ???????????????????????????????? | | # ^ *%!%%! ???????????????????????????????? | | ####"""#""####???????????????????????????????????? | | ?????? ! ??????????????????????????????????????? | | ???????? #?????????????????????????????????????? | | ?????????? #?????????????????????????????????????? | | ?????????????????????????????????????????????????? | | ?????????????????????????????????????????????????? | +----------------------------------------------------+ Best States ------------- Heat Dissipation 179 Coolant Potential 80 Energy Generation 48 Energy Capacity 1400 Matter Stores 1000 Matter Capacity 1000 Sight Range 21 Terrain Scan Range 16 Terrain Scan Density 10 ECM Strength 2 Jamming Range 14 Cloak Strength 5 Power Amplification 40 Additional Mass Support 9 Corruption Block 15 Armor Coverage 675 Resistance: KI 22 Resistance: TH 25 Propulsion Shielding 66 Weapon Shielding 100 Weapon Cycling 20 Evasion (%) 75 Targeting Accuracy 16 Melee Accuracy 5 Launcher Accuracy 30 Core Analysis 6 Recoil Reduction 6 Offensive Hacking 12 Item Schematics ----------------- Flight Unit | -9/Materials | Hacked Hardlight Generator | -8/Storage | Hacked Adv. System Restoration Module | -6/Zion | Archive Flexi-carbon Leg | -6/Zion | Archive Adv. Thermal Shield | -6/Zion | Archive Enh. Optical Array | -6/Zion | Archive Hvy. Treads | -6/Zion | Archive Magnetic Acceleration Cannon | -6/Zion | Archive Adv. Plasma Cannon | -6/Zion | Archive Focal Shield | -6/Zion | Archive Imp. Target Analyzer | -6/Zion | Archive HERF Cannon | -6/Zion | Archive Force Field | -6/Zion | Archive Imp. Hardlight Generator | -6/Zion | Archive Imp. Weapon Cycler | -6/Zion | Archive Imp. KE Penetrator | -6/Zion | Archive Flamer | -6/Zion | Free Hvy. Riot Gun | -6/Zion | Free Slug Cannon | -6/Zion | Free Plasma Flamer | -6/Zion | Free Tactical Coordination Suite | -6/Zion | Free Assault Drone Bay | -5/Zhirov | Free Exp. Heat Sink | -5/Zhirov | Free Exp. Optical Array | -5/Zhirov | Free Imp. Arc Thrower | -5/Zhirov | Free Robot Schematics ------------------ B-48 Gladiator | -6/Zion | Archive L-41 Fighter | -6/Zion | Archive H-66 Slayer | -6/Zion | Archive Fabricated ------------ Nothing Repaired ---------- Nothing Studied --------- Lgt. Nuclear Core | -6/Factory | Hacked Mic. Fission Core | -5/Factory | Hacked Field Propulsion Drive | -5/Factory | Hacked Impulse Thruster | -4/Factory | Hacked Alien Tech Used ----------------- Integrated Dissipator Transdimensional Reconstructor Achievements -------------- None Challenges ------------ None Game ------ Seed SmallPitchforkMembrane Manual? 0 Play Time 04:27:18 Cumulative 1534.6 hours Start 2026.07.11 @ 15:59:26 End 2026.07.12 @ 16:15:28 Sessions 15 Manual Loads 0 Difficulty Rogue Special Mode None Game No. 678 Rogue 678 Adventurer 0 Explorer 0 Win Type - Total 32 Types 15/7/3/0/1/1/2/2/0/1 Lore% 94 Gallery% 87 Achievement% 76 Wizard Run 0 Options --------- Layout 0 ASCII 0 Keyboard 0 Movement Numpad Keybinds 0 Fullscreen 2 Font 24/Smallcaps Map View 76x50 Zoom Use 0% Tactical HUD 1 Map Filters NONE Filters NONE Steam 1 RUN: 5cf4d3b7-0858-4944-8a80-08ede905bcf5